[Event "Titled Tuesday Blitz August 15 Late 2023"]
[White "Leenhouts, Koen"]
[Black "Pakleza, Zbigniew"]
[WhiteFideId "1008439"]
[BlackFideId "1119290"]
[WhiteElo "2573"]
[BlackElo "2809"]
[Result "1/2-1/2"]
[Round "8"]
[TimeControl "180+1"]
[Date "2023.08.15"]
[WhiteClock "0:00:03"]
[BlackClock "0:00:07"]
[Board "31"]

1. d4 {[%clk 0:03:00]}  d6 {[%clk 0:02:59]} 2. e4 {[%clk 0:02:58]}  Nf6 {[%clk 0:02:59]} 3. f3 {[%clk 0:02:58]}  Nbd7 {[%clk 0:02:59]} 4. Be3 {[%clk 0:02:55]}  e5 {[%clk 0:03:00]} 5. Bc4 {[%clk 0:02:53]}  Be7 {[%clk 0:03:00]} 6. Ne2 {[%clk 0:02:47]}  c6 {[%clk 0:03:00]} 7. O-O {[%clk 0:02:46]}  O-O {[%clk 0:03:00]} 8. a4 {[%clk 0:02:45]}  d5 {[%clk 0:02:57]} 9. exd5 {[%clk 0:02:41]}  Nxd5 {[%clk 0:02:58]} 10. Bf2 {[%clk 0:02:38]}  Bf6 {[%clk 0:02:55]} 11. Nbc3 {[%clk 0:02:32]}  Nxc3 {[%clk 0:02:44]} 12. Nxc3 {[%clk 0:02:22]}  Nb6 {[%clk 0:02:31]} 13. Bb3 {[%clk 0:02:21]}  exd4 {[%clk 0:02:28]} 14. Ne4 {[%clk 0:02:17]}  Be5 {[%clk 0:02:23]} 15. a5 {[%clk 0:02:15]}  Nd5 {[%clk 0:02:18]} 16. Bxd4 {[%clk 0:02:14]}  Qc7 {[%clk 0:02:07]} 17. Bxe5 {[%clk 0:02:06]}  Qxe5 {[%clk 0:02:07]} 18. Re1 {[%clk 0:01:21]}  Qxb2 {[%clk 0:01:37]} 19. Ra2 {[%clk 0:01:20]}  Qe5 {[%clk 0:01:27]} 20. Nc5 {[%clk 0:01:16]}  Qc3 {[%clk 0:01:00]} 21. Ne4 {[%clk 0:01:11]}  Qe5 {[%clk 0:00:54]} 22. Nc5 {[%clk 0:01:07]}  Ne3 {[%clk 0:00:46]} 23. Qd3 {[%clk 0:01:06]}  Qxc5 {[%clk 0:00:44]} 24. Qxe3 {[%clk 0:01:05]}  Qd6 {[%clk 0:00:09]} 25. Ra4 {[%clk 0:00:55]}  Bf5 {[%clk 0:00:07]} 26. Qe7 {[%clk 0:00:45]}  Qxe7 {[%clk 0:00:02]} 27. Rxe7 {[%clk 0:00:44]}  Rab8 {[%clk 0:00:03]} 28. Rf4 {[%clk 0:00:35]}  Bg6 {[%clk 0:00:03]} 29. Rb4 {[%clk 0:00:35]}  b6 {[%clk 0:00:01]} 30. Rxa7 {[%clk 0:00:34]}  bxa5 {[%clk 0:00:02]} 31. Rxb8 {[%clk 0:00:32]}  Rxb8 {[%clk 0:00:03]} 32. Rxa5 {[%clk 0:00:32]}  Kf8 {[%clk 0:00:03]} 33. Ra7 {[%clk 0:00:27]}  h5 {[%clk 0:00:03]} 34. Rc7 {[%clk 0:00:22]}  Rb6 {[%clk 0:00:03]} 35. Kf2 {[%clk 0:00:22]}  Ra6 {[%clk 0:00:03]} 36. Ke3 {[%clk 0:00:19]}  h4 {[%clk 0:00:02]} 37. Kd4 {[%clk 0:00:15]}  Ra1 {[%clk 0:00:01]} 38. Rxc6 {[%clk 0:00:12]}  Rg1 {[%clk 0:00:02]} 39. g3 {[%clk 0:00:07]}  h3 {[%clk 0:00:02]} 40. Rc8+ {[%clk 0:00:05]}  Ke7 {[%clk 0:00:03]} 41. Rh8 {[%clk 0:00:04]}  Rg2 {[%clk 0:00:01]} 42. Rxh3 {[%clk 0:00:03]}  Bxc2 {[%clk 0:00:02]} 43. Bxc2 {[%clk 0:00:02]}  Rxc2 {[%clk 0:00:03]} 44. Rh4 {[%clk 0:00:02]}  Ra2 {[%clk 0:00:04]} 45. Re4+ {[%clk 0:00:03]}  Kf6 {[%clk 0:00:05]} 46. Ke3 {[%clk 0:00:03]}  Rxh2 {[%clk 0:00:04]} 47. Rf4+ {[%clk 0:00:04]}  Kg6 {[%clk 0:00:05]} 48. Rg4+ {[%clk 0:00:05]}  Kf6 {[%clk 0:00:05]} 49. Rf4+ {[%clk 0:00:06]}  Ke7 {[%clk 0:00:05]} 50. Rg4 {[%clk 0:00:06]}  g6 {[%clk 0:00:05]} 51. Re4+ {[%clk 0:00:06]}  Kf6 {[%clk 0:00:05]} 52. g4 {[%clk 0:00:06]}  Ra2 {[%clk 0:00:04]} 53. Kf4 {[%clk 0:00:06]}  Ra3 {[%clk 0:00:04]} 54. Kg3 {[%clk 0:00:06]}  Kg5 {[%clk 0:00:03]} 55. Re5+ {[%clk 0:00:06]}  Kf6 {[%clk 0:00:03]} 56. Re4 {[%clk 0:00:07]}  Kg5 {[%clk 0:00:03]} 57. Re5+ {[%clk 0:00:07]}  f5 {[%clk 0:00:04]} 58. gxf5 {[%clk 0:00:06]}  gxf5 {[%clk 0:00:05]} 59. Rc5 {[%clk 0:00:06]}  Rb3 {[%clk 0:00:05]} 60. Rd5 {[%clk 0:00:06]}  Rc3 {[%clk 0:00:06]} 61. Re5 {[%clk 0:00:06]}  Rd3 {[%clk 0:00:06]} 62. Rb5 {[%clk 0:00:07]}  Kf6 {[%clk 0:00:06]} 63. Ra5 {[%clk 0:00:07]}  Rd4 {[%clk 0:00:06]} 64. Ra6+ {[%clk 0:00:07]}  Kg5 {[%clk 0:00:06]} 65. Ra5 {[%clk 0:00:08]}  Rc4 {[%clk 0:00:05]} 66. Rb5 {[%clk 0:00:08]}  Rc1 {[%clk 0:00:05]} 67. Ra5 {[%clk 0:00:08]}  Rg1+ {[%clk 0:00:05]} 68. Kf2 {[%clk 0:00:08]}  Rb1 {[%clk 0:00:06]} 69. Kg3 {[%clk 0:00:08]}  Rb8 {[%clk 0:00:06]} 70. f4+ {[%clk 0:00:08]}  Kg6 {[%clk 0:00:06]} 71. Ra6+ {[%clk 0:00:08]}  Kh5 {[%clk 0:00:06]} 72. Ra3 {[%clk 0:00:06]}  Rg8+ {[%clk 0:00:06]} 73. Kf3 {[%clk 0:00:06]}  Kh4 {[%clk 0:00:06]} 74. Ra5 {[%clk 0:00:04]}  Rg3+ {[%clk 0:00:06]} 75. Kf2 {[%clk 0:00:04]}  Kg4 {[%clk 0:00:07]} 76. Rxf5 {[%clk 0:00:04]}  Rf3+ {[%clk 0:00:06]} 77. Ke2 {[%clk 0:00:04]}  Rxf4 {[%clk 0:00:06]} 78. Rxf4+ {[%clk 0:00:03]}  Kxf4 {[%clk 0:00:07]} 1/2-1/2


[Site "https://www.chess.com"]

[Event "Titled Tuesday Blitz August 15 Late 2023"]
[White "Matinian, Nikita"]
[Black "Yurtseven, Melih"]
[WhiteFideId "24129100"]
[BlackFideId "6312160"]
[WhiteElo "2717"]
[BlackElo "2546"]
[Result "1-0"]
[Round "8"]
[TimeControl "180+1"]
[Date "2023.08.15"]
[WhiteClock "0:00:19"]
[BlackClock "0:00:02"]
[Board "34"]

1. e4 {[%clk 0:03:00]}  e5 {[%clk 0:02:42]} 2. Nf3 {[%clk 0:03:00]}  Nc6 {[%clk 0:02:43]} 3. Bb5 {[%clk 0:03:01]}  a6 {[%clk 0:02:41]} 4. Ba4 {[%clk 0:03:01]}  Nf6 {[%clk 0:02:36]} 5. O-O {[%clk 0:03:01]}  Be7 {[%clk 0:02:35]} 6. d3 {[%clk 0:03:02]}  b5 {[%clk 0:02:35]} 7. Bb3 {[%clk 0:03:02]}  d6 {[%clk 0:02:35]} 8. a3 {[%clk 0:03:03]}  h6 {[%clk 0:02:33]} 9. Nc3 {[%clk 0:03:03]}  Be6 {[%clk 0:02:29]} 10. Bxe6 {[%clk 0:02:32]}  fxe6 {[%clk 0:02:30]} 11. Nh4 {[%clk 0:02:32]}  g5 {[%clk 0:02:24]} 12. Ng6 {[%clk 0:02:32]}  Rg8 {[%clk 0:02:25]} 13. Nxe7 {[%clk 0:02:32]}  Qxe7 {[%clk 0:02:26]} 14. a4 {[%clk 0:02:32]}  b4 {[%clk 0:02:25]} 15. Nb1 {[%clk 0:02:27]}  Kf7 {[%clk 0:02:13]} 16. Be3 {[%clk 0:02:23]}  Kg7 {[%clk 0:02:11]} 17. Nd2 {[%clk 0:02:22]}  Kh7 {[%clk 0:02:11]} 18. a5 {[%clk 0:02:21]}  Rab8 {[%clk 0:02:09]} 19. c3 {[%clk 0:02:21]}  Rb5 {[%clk 0:01:58]} 20. d4 {[%clk 0:02:06]}  bxc3 {[%clk 0:01:46]} 21. bxc3 {[%clk 0:02:07]}  Rgb8 {[%clk 0:01:46]} 22. Qc2 {[%clk 0:01:45]}  Nxa5 {[%clk 0:01:25]} 23. c4 {[%clk 0:01:40]}  Rb2 {[%clk 0:01:24]} 24. Qc3 {[%clk 0:01:32]}  exd4 {[%clk 0:01:05]} 25. Bxd4 {[%clk 0:01:25]}  e5 {[%clk 0:01:05]} 26. Ba7 {[%clk 0:01:25]}  Nc6 {[%clk 0:00:51]} 27. Bxb8 {[%clk 0:01:20]}  Rxb8 {[%clk 0:00:52]} 28. Rxa6 {[%clk 0:01:08]}  Nd4 {[%clk 0:00:52]} 29. Re1 {[%clk 0:01:08]}  Nd7 {[%clk 0:00:46]} 30. Ra7 {[%clk 0:00:56]}  Nc5 {[%clk 0:00:45]} 31. Qh3 {[%clk 0:00:55]}  Nce6 {[%clk 0:00:34]} 32. Nf1 {[%clk 0:00:46]}  Nf4 {[%clk 0:00:29]} 33. Qg4 {[%clk 0:00:43]}  h5 {[%clk 0:00:29]} 34. Qd1 {[%clk 0:00:43]}  h4 {[%clk 0:00:15]} 35. Ne3 {[%clk 0:00:43]}  Qd7 {[%clk 0:00:10]} 36. Nd5 {[%clk 0:00:34]}  Nxd5 {[%clk 0:00:09]} 37. Qh5+ {[%clk 0:00:32]}  Kg7 {[%clk 0:00:08]} 38. Qxg5+ {[%clk 0:00:32]}  Kf7 {[%clk 0:00:07]} 39. Qh5+ {[%clk 0:00:30]}  Kg7 {[%clk 0:00:06]} 40. cxd5 {[%clk 0:00:26]}  Rf8 {[%clk 0:00:04]} 41. Qxh4 {[%clk 0:00:24]}  Rf7 {[%clk 0:00:04]} 42. h3 {[%clk 0:00:19]}  Rf6 {[%clk 0:00:03]} 43. Qg4+ {[%clk 0:00:19]}  Rg6 {[%clk 0:00:02]} 44. Qxd7+ {[%clk 0:00:19]} 1-0


[Site "https://www.chess.com"]

[Event "Titled Tuesday Blitz August 15 Late 2023"]
[White "Dourerassou, Jonathan"]
[Black "NigelDwarf"]
[WhiteFideId "628050"]
[WhiteElo "2677"]
[BlackElo "2505"]
[Result "1-0"]
[Round "8"]
[TimeControl "180+1"]
[Date "2023.08.15"]
[WhiteClock "0:00:34"]
[BlackClock "0:00:07"]
[Board "36"]

1. e4 {[%clk 0:03:00]}  c5 {[%clk 0:02:59]} 2. Nc3 {[%clk 0:03:00]}  a6 {[%clk 0:02:58]} 3. f4 {[%clk 0:03:00]}  b5 {[%clk 0:02:58]} 4. Nf3 {[%clk 0:03:01]}  Bb7 {[%clk 0:02:57]} 5. d3 {[%clk 0:03:01]}  e6 {[%clk 0:02:57]} 6. g3 {[%clk 0:03:01]}  h5 {[%clk 0:02:54]} 7. Bg2 {[%clk 0:03:00]}  h4 {[%clk 0:02:54]} 8. Nxh4 {[%clk 0:02:59]}  Rxh4 {[%clk 0:02:46]} 9. gxh4 {[%clk 0:03:00]}  Qxh4+ {[%clk 0:02:40]} 10. Kf1 {[%clk 0:02:59]}  Nf6 {[%clk 0:02:34]} 11. Qe1 {[%clk 0:02:59]}  Qh5 {[%clk 0:02:31]} 12. Qe2 {[%clk 0:02:58]}  Qh4 {[%clk 0:02:24]} 13. Bd2 {[%clk 0:02:54]}  Nc6 {[%clk 0:02:20]} 14. Qf2 {[%clk 0:02:51]}  Qh7 {[%clk 0:02:11]} 15. e5 {[%clk 0:02:42]}  Ng4 {[%clk 0:02:10]} 16. Qg3 {[%clk 0:02:41]}  Nh6 {[%clk 0:02:05]} 17. Qh3 {[%clk 0:02:26]}  O-O-O {[%clk 0:01:59]} 18. a4 {[%clk 0:02:18]}  b4 {[%clk 0:01:53]} 19. Ne2 {[%clk 0:02:16]}  d5 {[%clk 0:01:36]} 20. c3 {[%clk 0:02:09]}  a5 {[%clk 0:01:26]} 21. cxb4 {[%clk 0:01:53]}  axb4 {[%clk 0:01:24]} 22. Kf2 {[%clk 0:01:35]}  Ba6 {[%clk 0:01:20]} 23. Rhc1 {[%clk 0:01:22]}  Bxd3 {[%clk 0:01:15]} 24. Be3 {[%clk 0:01:21]}  c4 {[%clk 0:00:42]} 25. Nd4 {[%clk 0:01:08]}  Nxd4 {[%clk 0:00:35]} 26. Bxd4 {[%clk 0:01:09]}  Bf5 {[%clk 0:00:30]} 27. Qg3 {[%clk 0:01:08]}  Ng4+ {[%clk 0:00:26]} 28. Kg1 {[%clk 0:01:06]}  Be7 {[%clk 0:00:26]} 29. h3 {[%clk 0:01:03]}  Nh6 {[%clk 0:00:22]} 30. a5 {[%clk 0:00:59]}  Bd3 {[%clk 0:00:18]} 31. a6 {[%clk 0:00:51]}  Kb8 {[%clk 0:00:17]} 32. Qf2 {[%clk 0:00:35]}  Nf5 {[%clk 0:00:13]} 33. Ba7+ {[%clk 0:00:35]}  Kc7 {[%clk 0:00:10]} 34. Qb6+ {[%clk 0:00:35]}  Kd7 {[%clk 0:00:10]} 35. Qb5+ {[%clk 0:00:35]}  Kc7 {[%clk 0:00:07]} 36. Bb6+ {[%clk 0:00:34]}  Kc8 {[%clk 0:00:07]} 37. Qc6+ {[%clk 0:00:34]}  Kb8 {[%clk 0:00:07]} 38. Qb7# {[%clk 0:00:34]} 1-0


[Site "https://www.chess.com"]

[Event "Titled Tuesday Blitz August 15 Late 2023"]
[White "djathtaspogradec"]
[Black "Veiga, Jose Francisco R P Neves"]
[BlackFideId "1930087"]
[WhiteElo "2477"]
[BlackElo "2663"]
[Result "0-1"]
[Round "8"]
[TimeControl "180+1"]
[Date "2023.08.15"]
[WhiteClock "0:00:44"]
[BlackClock "0:01:42"]
[Board "38"]

1. e4 {[%clk 0:03:00]}  Nc6 {[%clk 0:02:56]} 2. Nf3 {[%clk 0:02:59]}  d6 {[%clk 0:02:55]} 3. d4 {[%clk 0:02:59]}  Nf6 {[%clk 0:02:56]} 4. Nc3 {[%clk 0:02:59]}  g6 {[%clk 0:02:56]} 5. h3 {[%clk 0:02:58]}  Bg7 {[%clk 0:02:56]} 6. Bc4 {[%clk 0:02:59]}  O-O {[%clk 0:02:56]} 7. O-O {[%clk 0:02:59]}  a6 {[%clk 0:02:56]} 8. a4 {[%clk 0:02:59]}  e5 {[%clk 0:02:54]} 9. Re1 {[%clk 0:02:58]}  exd4 {[%clk 0:02:49]} 10. Nxd4 {[%clk 0:02:58]}  Bd7 {[%clk 0:02:50]} 11. Nf3 {[%clk 0:02:56]}  Qe7 {[%clk 0:02:40]} 12. Bg5 {[%clk 0:02:55]}  Be6 {[%clk 0:02:39]} 13. Bd5 {[%clk 0:02:33]}  h6 {[%clk 0:02:36]} 14. Bh4 {[%clk 0:02:33]}  Qd7 {[%clk 0:02:32]} 15. Qd2 {[%clk 0:02:26]}  Rfe8 {[%clk 0:02:28]} 16. Bxf6 {[%clk 0:02:21]}  Bxf6 {[%clk 0:02:28]} 17. Qxh6 {[%clk 0:02:22]}  Nd4 {[%clk 0:02:19]} 18. Nxd4 {[%clk 0:02:18]}  Bxd4 {[%clk 0:02:20]} 19. Bxe6 {[%clk 0:02:18]}  Rxe6 {[%clk 0:02:18]} 20. Qd2 {[%clk 0:02:13]}  Bg7 {[%clk 0:02:13]} 21. Re2 {[%clk 0:02:08]}  Rae8 {[%clk 0:02:13]} 22. Rae1 {[%clk 0:02:08]}  Bxc3 {[%clk 0:01:58]} 23. Qxc3 {[%clk 0:02:08]}  Qxa4 {[%clk 0:01:59]} 24. Qxc7 {[%clk 0:02:08]}  Rxe4 {[%clk 0:01:59]} 25. Rxe4 {[%clk 0:01:59]}  Rxe4 {[%clk 0:01:58]} 26. Rd1 {[%clk 0:00:53]}  Re2 {[%clk 0:01:53]} 27. Rxd6 {[%clk 0:00:45]}  Re1+ {[%clk 0:01:42]} 28. Kh2 {[%clk 0:00:44]}  Qf4+ {[%clk 0:01:42]} 0-1


[Site "https://www.chess.com"]

[Event "Titled Tuesday Blitz August 15 Late 2023"]
[White "Valenzuela Gomez, Fernando"]
[Black "Bueno, Alfeu Junior Varela"]
[WhiteFideId "3409392"]
[BlackFideId "2108879"]
[WhiteElo "2636"]
[BlackElo "2473"]
[Result "1-0"]
[Round "8"]
[TimeControl "180+1"]
[Date "2023.08.15"]
[WhiteClock "0:00:30"]
[BlackClock "0:01:08"]
[Board "39"]

1. Nf3 {[%clk 0:03:00]}  e6 {[%clk 0:02:58]} 2. c4 {[%clk 0:02:59]}  f5 {[%clk 0:02:58]} 3. Nc3 {[%clk 0:02:49]}  Bb4 {[%clk 0:02:57]} 4. d4 {[%clk 0:02:50]}  Bxc3+ {[%clk 0:02:57]} 5. bxc3 {[%clk 0:02:51]}  b6 {[%clk 0:02:57]} 6. a4 {[%clk 0:02:44]}  a5 {[%clk 0:02:56]} 7. Ba3 {[%clk 0:02:30]}  Bb7 {[%clk 0:02:52]} 8. e3 {[%clk 0:02:22]}  Nf6 {[%clk 0:02:52]} 9. Bd3 {[%clk 0:02:18]}  Ne4 {[%clk 0:02:50]} 10. Nd2 {[%clk 0:02:14]}  Nxd2 {[%clk 0:02:27]} 11. Kxd2 {[%clk 0:01:56]}  Qg5 {[%clk 0:02:16]} 12. Rg1 {[%clk 0:01:34]}  f4 {[%clk 0:02:14]} 13. Qe2 {[%clk 0:01:14]}  Nc6 {[%clk 0:02:10]} 14. Kc2 {[%clk 0:01:11]}  O-O-O {[%clk 0:02:08]} 15. Rab1 {[%clk 0:01:12]}  d6 {[%clk 0:01:46]} 16. Rb5 {[%clk 0:00:59]}  e5 {[%clk 0:01:37]} 17. Rgb1 {[%clk 0:00:42]}  fxe3 {[%clk 0:01:19]} 18. fxe3 {[%clk 0:00:43]}  Rhe8 {[%clk 0:01:17]} 19. Bc1 {[%clk 0:00:31]}  exd4 {[%clk 0:01:08]} 20. Rxg5 {[%clk 0:00:30]} 1-0


[Site "https://www.chess.com"]

[Event "Titled Tuesday Blitz August 15 Late 2023"]
[White "Papayan, Oleg"]
[Black "Gurevich, Dmitry"]
[WhiteFideId "4193911"]
[BlackFideId "2000407"]
[WhiteElo "2629"]
[BlackElo "2480"]
[Result "1/2-1/2"]
[Round "8"]
[TimeControl "180+1"]
[Date "2023.08.15"]
[WhiteClock "0:00:02"]
[BlackClock "0:00:06"]
[Board "47"]

1. e4 {[%clk 0:02:58]}  c5 {[%clk 0:02:59]} 2. d4 {[%clk 0:02:58]}  cxd4 {[%clk 0:02:58]} 3. Qxd4 {[%clk 0:02:59]}  Nc6 {[%clk 0:02:57]} 4. Qd3 {[%clk 0:03:00]}  g6 {[%clk 0:02:57]} 5. Nc3 {[%clk 0:03:00]}  Bg7 {[%clk 0:02:57]} 6. Nf3 {[%clk 0:03:01]}  d6 {[%clk 0:02:55]} 7. Be2 {[%clk 0:03:01]}  Nf6 {[%clk 0:02:55]} 8. O-O {[%clk 0:03:02]}  Bg4 {[%clk 0:02:54]} 9. Nd5 {[%clk 0:03:02]}  Bxf3 {[%clk 0:02:52]} 10. Qxf3 {[%clk 0:03:00]}  O-O {[%clk 0:02:45]} 11. c3 {[%clk 0:02:56]}  e6 {[%clk 0:02:40]} 12. Nxf6+ {[%clk 0:02:53]}  Qxf6 {[%clk 0:02:39]} 13. Bf4 {[%clk 0:02:31]}  Rfd8 {[%clk 0:02:33]} 14. Rad1 {[%clk 0:02:27]}  Ne5 {[%clk 0:02:30]} 15. Qe3 {[%clk 0:02:19]}  Qe7 {[%clk 0:02:21]} 16. Rd2 {[%clk 0:02:08]}  a6 {[%clk 0:02:20]} 17. Rfd1 {[%clk 0:02:08]}  b5 {[%clk 0:02:19]} 18. Qb6 {[%clk 0:01:56]}  Rab8 {[%clk 0:01:55]} 19. Qxa6 {[%clk 0:01:54]}  b4 {[%clk 0:01:46]} 20. Rxd6 {[%clk 0:01:24]}  Rxd6 {[%clk 0:01:41]} 21. Qxd6 {[%clk 0:01:25]}  Qxd6 {[%clk 0:01:40]} 22. Rxd6 {[%clk 0:01:26]}  bxc3 {[%clk 0:01:38]} 23. bxc3 {[%clk 0:01:27]}  h6 {[%clk 0:01:32]} 24. g3 {[%clk 0:00:59]}  g5 {[%clk 0:01:28]} 25. Be3 {[%clk 0:00:55]}  g4 {[%clk 0:01:27]} 26. Rb6 {[%clk 0:00:53]}  Rc8 {[%clk 0:01:25]} 27. Bd4 {[%clk 0:00:50]}  Nf3+ {[%clk 0:01:13]} 28. Bxf3 {[%clk 0:00:47]}  Bxd4 {[%clk 0:01:12]} 29. cxd4 {[%clk 0:00:47]}  gxf3 {[%clk 0:01:12]} 30. h4 {[%clk 0:00:36]}  Rc1+ {[%clk 0:01:06]} 31. Kh2 {[%clk 0:00:37]}  Rc2 {[%clk 0:01:06]} 32. g4 {[%clk 0:00:37]}  Rxf2+ {[%clk 0:01:05]} 33. Kg3 {[%clk 0:00:38]}  Rxa2 {[%clk 0:01:05]} 34. Kxf3 {[%clk 0:00:39]}  Ra3+ {[%clk 0:01:03]} 35. Kf4 {[%clk 0:00:39]}  Kg7 {[%clk 0:00:58]} 36. h5 {[%clk 0:00:32]}  Kf6 {[%clk 0:00:57]} 37. Rb8 {[%clk 0:00:31]}  Rd3 {[%clk 0:00:51]} 38. Rd8 {[%clk 0:00:31]}  Ke7 {[%clk 0:00:48]} 39. Rh8 {[%clk 0:00:31]}  Rxd4 {[%clk 0:00:48]} 40. Rxh6 {[%clk 0:00:31]}  Rd1 {[%clk 0:00:45]} 41. Rh8 {[%clk 0:00:28]}  Kf6 {[%clk 0:00:42]} 42. Ra8 {[%clk 0:00:11]}  e5+ {[%clk 0:00:40]} 43. Kg3 {[%clk 0:00:11]}  Rg1+ {[%clk 0:00:37]} 44. Kf3 {[%clk 0:00:11]}  Rf1+ {[%clk 0:00:36]} 45. Kg3 {[%clk 0:00:11]}  Rg1+ {[%clk 0:00:36]} 46. Kh3 {[%clk 0:00:11]}  Re1 {[%clk 0:00:32]} 47. Kg3 {[%clk 0:00:05]}  Rxe4 {[%clk 0:00:28]} 48. Rg8 {[%clk 0:00:05]}  Re1 {[%clk 0:00:27]} 49. h6 {[%clk 0:00:05]}  Rh1 {[%clk 0:00:25]} 50. g5+ {[%clk 0:00:05]}  Kf5 {[%clk 0:00:22]} 51. Rg7 {[%clk 0:00:05]}  e4 {[%clk 0:00:19]} 52. h7 {[%clk 0:00:03]}  e3 {[%clk 0:00:16]} 53. Kf3 {[%clk 0:00:04]}  Rh3+ {[%clk 0:00:15]} 54. Ke2 {[%clk 0:00:04]}  Kf4 {[%clk 0:00:09]} 55. Rxf7+ {[%clk 0:00:04]}  Kxg5 {[%clk 0:00:09]} 56. Rf3 {[%clk 0:00:03]}  Rxh7 {[%clk 0:00:07]} 57. Rxe3 {[%clk 0:00:03]}  Kg4 {[%clk 0:00:07]} 58. Ra3 {[%clk 0:00:03]}  Rh2+ {[%clk 0:00:06]} 59. Kf1 {[%clk 0:00:03]}  Rh3 {[%clk 0:00:06]} 60. Rxh3 {[%clk 0:00:02]}  Kxh3 {[%clk 0:00:06]} 1/2-1/2


[Site "https://www.chess.com"]

[Event "Titled Tuesday Blitz August 15 Late 2023"]
[White "Ribeiro, Matheus Mendes Domingues"]
[Black "Altman, Joshua"]
[WhiteFideId "324226923"]
[BlackFideId "426210"]
[WhiteElo "2464"]
[BlackElo "2602"]
[Result "0-1"]
[Round "8"]
[TimeControl "180+1"]
[Date "2023.08.15"]
[WhiteClock "0:00:07"]
[BlackClock "0:00:12"]
[Board "48"]

1. c4 {[%clk 0:03:00]}  e5 {[%clk 0:02:59]} 2. Nc3 {[%clk 0:03:00]}  Nc6 {[%clk 0:03:00]} 3. Nf3 {[%clk 0:03:00]}  Nf6 {[%clk 0:03:00]} 4. e4 {[%clk 0:03:00]}  Bb4 {[%clk 0:03:00]} 5. d3 {[%clk 0:03:00]}  d6 {[%clk 0:03:00]} 6. a3 {[%clk 0:03:01]}  Bxc3+ {[%clk 0:03:00]} 7. bxc3 {[%clk 0:03:02]}  h6 {[%clk 0:03:00]} 8. g3 {[%clk 0:03:00]}  O-O {[%clk 0:03:00]} 9. Bg2 {[%clk 0:03:01]}  Be6 {[%clk 0:03:00]} 10. O-O {[%clk 0:03:00]}  Nd7 {[%clk 0:02:57]} 11. Nh4 {[%clk 0:02:58]}  Ne7 {[%clk 0:02:50]} 12. f4 {[%clk 0:02:33]}  exf4 {[%clk 0:02:49]} 13. gxf4 {[%clk 0:01:25]}  f5 {[%clk 0:02:48]} 14. exf5 {[%clk 0:01:22]}  Nxf5 {[%clk 0:02:47]} 15. Nxf5 {[%clk 0:01:23]}  Bxf5 {[%clk 0:02:47]} 16. Bxb7 {[%clk 0:01:24]}  Rb8 {[%clk 0:02:47]} 17. Bd5+ {[%clk 0:01:25]}  Kh8 {[%clk 0:02:47]} 18. Be3 {[%clk 0:01:19]}  Qe8 {[%clk 0:02:42]} 19. Bxa7 {[%clk 0:01:14]}  Qg6+ {[%clk 0:02:32]} 20. Kh1 {[%clk 0:01:13]}  Rb2 {[%clk 0:02:08]} 21. Rg1 {[%clk 0:01:12]}  Qf6 {[%clk 0:02:08]} 22. Bd4 {[%clk 0:01:11]}  Rxh2+ {[%clk 0:01:19]} 23. Kxh2 {[%clk 0:01:07]}  Qh4+ {[%clk 0:01:19]} 24. Kg2 {[%clk 0:01:04]}  Bh3+ {[%clk 0:01:17]} 25. Kf3 {[%clk 0:00:43]}  Qxf4+ {[%clk 0:00:28]} 26. Ke2 {[%clk 0:00:43]}  Qh2+ {[%clk 0:00:24]} 27. Ke1 {[%clk 0:00:26]}  Ne5 {[%clk 0:00:19]} 28. Qe2 {[%clk 0:00:24]}  Qf4 {[%clk 0:00:14]} 29. Bxe5 {[%clk 0:00:22]}  dxe5 {[%clk 0:00:13]} 30. Rf1 {[%clk 0:00:16]}  Bxf1 {[%clk 0:00:12]} 31. Qxf1 {[%clk 0:00:07]}  Qxf1+ {[%clk 0:00:12]} 0-1


[Site "https://www.chess.com"]

[Event "Titled Tuesday Blitz August 15 Late 2023"]
[White "KrokerGuy"]
[Black "Manukyan, Sargis A."]
[BlackFideId "13303970"]
[WhiteElo "2465"]
[BlackElo "2591"]
[Result "0-1"]
[Round "8"]
[TimeControl "180+1"]
[Date "2023.08.15"]
[WhiteClock "0:00:06"]
[BlackClock "0:00:59"]
[Board "49"]

1. e4 {[%clk 0:03:00]}  c5 {[%clk 0:02:59]} 2. Nf3 {[%clk 0:03:01]}  d6 {[%clk 0:03:00]} 3. d4 {[%clk 0:03:02]}  cxd4 {[%clk 0:03:01]} 4. Nxd4 {[%clk 0:03:03]}  Nf6 {[%clk 0:03:01]} 5. Nc3 {[%clk 0:03:03]}  g6 {[%clk 0:03:02]} 6. Be3 {[%clk 0:03:04]}  Bg7 {[%clk 0:03:03]} 7. f3 {[%clk 0:03:04]}  O-O {[%clk 0:03:03]} 8. Qd2 {[%clk 0:03:05]}  Nc6 {[%clk 0:03:04]} 9. Bc4 {[%clk 0:03:06]}  Bd7 {[%clk 0:03:04]} 10. O-O-O {[%clk 0:03:06]}  Rc8 {[%clk 0:03:04]} 11. Bb3 {[%clk 0:03:07]}  Nxd4 {[%clk 0:03:05]} 12. Bxd4 {[%clk 0:03:07]}  b5 {[%clk 0:03:06]} 13. h4 {[%clk 0:03:08]}  a5 {[%clk 0:03:06]} 14. h5 {[%clk 0:03:09]}  a4 {[%clk 0:03:04]} 15. Bxf6 {[%clk 0:03:03]}  exf6 {[%clk 0:03:04]} 16. Bd5 {[%clk 0:03:02]}  b4 {[%clk 0:02:58]} 17. Ne2 {[%clk 0:02:42]}  f5 {[%clk 0:02:58]} 18. hxg6 {[%clk 0:02:39]}  hxg6 {[%clk 0:02:58]} 19. Nf4 {[%clk 0:02:39]}  Qf6 {[%clk 0:02:55]} 20. Nd3 {[%clk 0:02:34]}  a3 {[%clk 0:02:40]} 21. g4 {[%clk 0:02:32]}  Bb5 {[%clk 0:02:30]} 22. Qxb4 {[%clk 0:01:51]}  Bxd3 {[%clk 0:02:14]} 23. Rxd3 {[%clk 0:01:52]}  Rb8 {[%clk 0:01:50]} 24. Qxa3 {[%clk 0:01:50]}  Rxb2 {[%clk 0:01:49]} 25. Rb3 {[%clk 0:01:01]}  Rxb3 {[%clk 0:01:37]} 26. axb3 {[%clk 0:00:51]}  fxg4 {[%clk 0:01:34]} 27. fxg4 {[%clk 0:00:52]}  Qf3 {[%clk 0:01:27]} 28. Re1 {[%clk 0:00:40]}  Bc3 {[%clk 0:01:22]} 29. Rd1 {[%clk 0:00:39]}  Be5 {[%clk 0:01:13]} 30. Re1 {[%clk 0:00:19]}  Rc8 {[%clk 0:01:11]} 31. Kb1 {[%clk 0:00:17]}  Qc3 {[%clk 0:01:01]} 32. Re2 {[%clk 0:00:12]}  Kg7 {[%clk 0:01:01]} 33. Bc4 {[%clk 0:00:06]}  Rxc4 {[%clk 0:00:59]} 34. bxc4 {[%clk 0:00:06]}  Qxa3 {[%clk 0:00:59]} 0-1


[Site "https://www.chess.com"]